bitfinex-derivatives/quotes_BTCF0:USTF0_20240903
["timestamp","ask_amount","ask_price","bid_price","bid_amount"]
[1725378960681,1.01518267,57777.0,57776.0,0.002]
[1725378960980,1.61518267,57777.0,57776.0,0.002]
[1725378961182,1.97598267,57777.0,57776.0,0.002]
[1725378961402,0.173152,57767.0,57766.0,0.00025967]
[1725378961592,0.553152,57767.0,57766.0,0.00025967]
[1725378961778,1.672872,57767.0,57766.0,0.00025967]
[1725378962281,1.670872,57767.0,57766.0,0.00025967]
[1725378962983,1.771448,57767.0,57766.0,0.00125967]
[1725378963580,1.66852,57767.0,57759.0,0.0517785]
[1725378963774,1.66852,57767.0,57754.0,0.05181706]
[1725378963775,0.386986,57760.0,57754.0,0.05181706]
[1725378963977,0.17319,57754.0,57753.0,0.05181706]
[1725378964178,0.17319,57754.0,57746.0,0.3648]
[1725378964179,0.086601,57750.0,57747.0,0.05182055]
[1725378964379,0.086606,57747.0,57746.0,0.41262055]
[1725378964578,0.086606,57747.0,57744.0,0.3608]
[1725378964579,0.086609,57745.0,57744.0,0.3608]
[1725378964778,0.215609,57745.0,57744.0,0.3608]
[1725378965485,0.13,57745.0,57739.0,0.52888022]
[1725378965682,0.087016,57740.0,57739.0,0.47705967]
[1725378965984,0.197016,57740.0,57739.0,0.47705967]
[1725378967080,0.198016,57740.0,57739.0,0.47705967]
[1725378967280,0.195016,57740.0,57739.0,0.47705967]
[1725378968079,0.111,57740.0,57739.0,0.47705967]
[1725378968287,0.13654791,57740.0,57739.0,0.47705967]
[1725378968581,0.13654791,57740.0,57739.0,0.48705967]
[1725378969286,0.22316391,57740.0,57739.0,0.01025967]
[1725378970280,0.30977991,57740.0,57739.0,0.01025967]
[1725378970586,1.02595591,57740.0,57739.0,0.01025967]
[1725378970801,0.086628,57732.0,57728.0,0.004]
[1725378970983,0.086628,57732.0,57726.0,0.4519]
[1725378970984,0.207028,57732.0,57726.0,0.4519]
[1725378971286,0.207028,57732.0,57726.0,0.4501]
[1725378971883,0.207028,57732.0,57726.0,0.45035967]
[1725378972189,0.208028,57732.0,57726.0,0.45035967]
[1725378972588,0.208028,57732.0,57729.0,0.3]
[1725378972789,0.1214,57732.0,57729.0,0.3]
[1725378973085,0.0014,57732.0,57729.0,0.3]
[1725378973385,0.0014,57732.0,57731.0,0.44743]
[1725378973592,0.0124,57732.0,57731.0,0.44743]
[1725378973785,0.1314,57732.0,57731.0,0.44743]
[1725378973990,0.1454,57732.0,57731.0,0.44743]
[1725378974480,0.1314,57732.0,57731.0,0.44743]
[1725378974680,0.16498873,57732.0,57731.0,0.44743]
[1725378975082,0.15698873,57732.0,57731.0,0.44743]
[1725378975288,0.15798873,57732.0,57731.0,0.44743]
[1725378975886,0.15998873,57732.0,57731.0,0.44743]
[1725378976587,0.15398873,57732.0,57731.0,0.44743]
[1725378976786,0.15898873,57732.0,57731.0,0.44743]
[1725378977685,0.15798873,57732.0,57731.0,0.44743]
[1725378977989,0.24461673,57732.0,57731.0,0.44743]
[1725378978192,0.23761673,57732.0,57731.0,0.44743]
[1725378978488,0.24661673,57732.0,57731.0,0.44743]
[1725378978789,0.23861673,57732.0,57731.0,0.44743]
[1725378978984,0.25061673,57732.0,57731.0,0.44743]
[1725378979387,0.25461673,57732.0,57731.0,0.44743]
[1725378979990,0.16798873,57732.0,57731.0,0.44743]
[1725378980686,0.16598873,57732.0,57731.0,0.44743]
[1725378981588,0.16198873,57732.0,57731.0,0.44743]
[1725378981988,0.15198873,57732.0,57731.0,0.44743]
[1725378982201,0.15598873,57732.0,57731.0,0.44743]
[1725378982783,0.15198873,57732.0,57731.0,0.44743]
[1725378982991,0.20598873,57732.0,57731.0,0.44743]
[1725378983194,0.29261673,57732.0,57731.0,0.44743]
[1725378984099,0.29261673,57732.0,57731.0,0.3608]
[1725378984588,0.28261673,57732.0,57731.0,0.3608]
[1725378984796,0.29261673,57732.0,57731.0,0.3608]
[1725378985185,0.29261673,57732.0,57726.0,0.45035967]
[1725378985186,0.173272,57727.0,57726.0,0.00025967]
[1725378985393,0.890308,57727.0,57726.0,0.00025967]
[1725378986185,2.009988,57727.0,57726.0,0.00025967]
[1725378986389,2.171788,57727.0,57726.0,0.00025967]
[1725378987783,2.179788,57727.0,57726.0,0.00025967]
[1725378987989,2.093152,57727.0,57726.0,0.00025967]
[1725378988292,2.093152,57727.0,57715.0,0.004]
[1725378988293,1.91988,57727.0,57715.0,0.004]
[1725378988493,0.3004,57716.0,57712.0,0.0036]
[1725378988693,0.0004,57713.0,57712.0,0.0036]
[1725378988897,0.36,57713.0,57712.0,0.0036]
[1725378990999,0.7298,57713.0,57712.0,0.0036]
[1725378991589,0.7338,57713.0,57712.0,0.0036]
[1725378991793,0.7418,57713.0,57712.0,0.0036]
[1725378991998,1.8616,57713.0,57712.0,0.0036]
[1725378992304,2.0164,57713.0,57712.0,0.0036]
[1725378992499,2.107057,57713.0,57712.0,0.0036]
[1725378992916,2.13185466,57713.0,57712.0,0.0036]
[1725378994104,0.92539766,57713.0,57712.0,0.0036]
[1725378994801,0.92639766,57713.0,57712.0,0.0036]
[1725378995003,2.43485466,57713.0,57712.0,0.0036]
[1725378995703,2.42085466,57713.0,57712.0,0.0036]
[1725378995904,2.43285466,57713.0,57712.0,0.0036]
[1725378996107,2.43185466,57713.0,57712.0,0.0036]
[1725378997403,2.41985466,57713.0,57712.0,0.0036]
[1725378997609,2.43385466,57713.0,57712.0,0.0036]
[1725378997810,2.43485466,57713.0,57712.0,0.0036]
[1725378998899,1.83485466,57713.0,57712.0,0.0036]
[1725378999107,1.74819766,57713.0,57712.0,0.0036]
[1725378999417,2.34819766,57713.0,57712.0,0.090258]
[1725378999598,1.22839766,57713.0,57712.0,0.090258]
[1725379000102,1.16839766,57713.0,57712.0,0.090258]
[1725379000302,0.92839766,57713.0,57712.0,0.090258]
[1725379000506,0.44759766,57713.0,57712.0,0.090258]
[1725379000807,0.57759766,57713.0,57712.0,0.090258]
[1725379001401,0.57759766,57713.0,57712.0,0.416916]
[1725379001708,0.37944418,57713.0,57712.0,0.416916]
[1725379002101,0.37944418,57713.0,57712.0,0.176916]
[1725379002301,0.72944418,57713.0,57712.0,0.14193312]
[1725379002497,0.72944418,57713.0,57712.0,0.0036]
[1725379003311,0.81610118,57713.0,57712.0,0.0036]
[1725379004800,1.33590118,57713.0,57712.0,0.0036]
[1725379005201,1.93590118,57713.0,57712.0,0.0036]
[1725379005608,1.33590118,57713.0,57712.0,0.0036]
[1725379006107,1.24924418,57713.0,57712.0,0.0036]
[1725379006299,0.72944418,57713.0,57712.0,0.0036]
[1725379006506,0.72944418,57713.0,57712.0,0.090258]
[1725379006702,0.72944418,57713.0,57712.0,0.091888]
[1725379007509,0.37944418,57713.0,57712.0,0.091888]
[1725379007717,0.37944418,57713.0,57712.0,0.418546]
[1725379008514,0.37944418,57713.0,57712.0,0.96947181]
[1725379008701,0.37944418,57713.0,57712.0,0.88281381]
[1725379008910,0.49944418,57713.0,57712.0,0.573888]
[1725379009213,0.34464418,57713.0,57712.0,0.573888]
[1725379009507,0.34464418,57713.0,57712.0,0.00523]
[1725379009723,0.51795818,57713.0,57712.0,0.00523]
[1725379010208,1.82524418,57713.0,57707.0,0.00025991]
[1725379010409,0.774128,57708.0,57707.0,0.00025991]
[1725379010711,1.134128,57708.0,57707.0,0.00025991]
[1725379010911,1.134128,57708.0,57698.0,0.004]
[1725379010912,0.086678,57699.0,57698.0,0.004]
[1725379011210,0.086679,57698.0,57691.0,0.00184]
[1725379011411,0.086679,57698.0,57688.0,0.05170935]
[1725379011412,0.24,57692.0,57688.0,0.05170935]
[1725379011607,0.22,57692.0,57688.0,0.24]
[1725379011808,0.22,57692.0,57691.0,0.08669]
[1725379012000,0.22,57692.0,57689.0,0.9531]
[1725379012001,0.32,57692.0,57689.0,0.9531]
[1725379012211,0.32,57692.0,57686.0,0.0518845]
[1725379012512,0.1548,57691.0,57686.0,0.00017515]
[1725379012712,0.1548,57691.0,57686.0,0.1385815]
[1725379012713,0.4548,57691.0,57686.0,0.1385815]
[1725379013099,0.4548,57691.0,57687.0,0.086696]
[1725379013299,0.4548,57691.0,57687.0,0.02670935]
[1725379013504,0.4548,57691.0,57689.0,0.086692]
[1725379013704,0.47945723,57691.0,57686.0,0.00017515]
[1725379013910,0.3608,57689.0,57686.0,0.00017515]
[1725379014116,0.13,57689.0,57686.0,0.08687215]
[1725379014409,0.13,57689.0,57688.0,0.15561981]
[1725379014821,0.13,57689.0,57688.0,0.086694]
[1725379015410,0.13,57689.0,57688.0,0.15561981]
[1725379015603,0.135,57689.0,57688.0,0.15561981]
[1725379016115,0.138,57689.0,57688.0,0.086694]
[1725379016302,0.258,57689.0,57688.0,0.15561981]
[1725379016503,0.6188,57689.0,57688.0,0.086694]
[1725379016811,0.6188,57689.0,57686.0,0.00017515]
[1725379016812,0.173392,57687.0,57686.0,0.00017515]
[1725379017008,1.323432,57687.0,57686.0,0.00017515]
[1725379017310,0.803392,57687.0,57686.0,0.00017515]
[1725379017725,1.923432,57687.0,57686.0,0.00017515]
[1725379017914,1.237536,57687.0,57686.0,0.00017515]
[1725379018618,0.717496,57687.0,57686.0,0.00017515]
[1725379019213,0.731496,57687.0,57686.0,0.00017515]
[1725379019517,0.2348,57687.0,57686.0,0.00017515]
[1725379020019,0.5348,57687.0,57686.0,0.00017515]
[1725379020316,0.731496,57687.0,57686.0,0.00017515]
[1725379021906,0.3448,57687.0,57686.0,0.00017515]
[1725379022411,0.2348,57687.0,57686.0,0.00017515]
[1725379022914,0.2348,57687.0,57686.0,0.08687215]
[1725379023816,0.2208,57687.0,57686.0,0.08687215]
[1725379024013,0.2328,57687.0,57686.0,0.08687215]
[1725379025612,0.2208,57687.0,57686.0,0.08687215]
[1725379025809,0.2298,57687.0,57686.0,0.08687215]
[1725379026321,0.2308,57687.0,57686.0,0.08687215]
[1725379026517,0.2308,57687.0,57686.0,1.03117215]
[1725379026907,0.2208,57687.0,57686.0,1.03117215]
[1725379027112,0.2298,57687.0,57686.0,1.03117215]
[1725379028318,0.2298,57687.0,57686.0,2.15121215]
[1725379029014,0.1108,57687.0,57686.0,2.15121215]
[1725379029319,0.0008,57687.0,57686.0,1.63790915]
[1725379029626,0.714192,57687.0,57686.0,0.00017515]
[1725379029825,0.714192,57687.0,57686.0,0.00117515]
[1725379030333,0.714192,57687.0,57686.0,0.00017515]
[1725379031227,0.327496,57687.0,57686.0,0.00017515]
[1725379031414,0.2408,57687.0,57686.0,0.08687215]
[1725379032018,0.2408,57687.0,57686.0,0.84691215]
[1725379032208,0.2498,57687.0,57686.0,0.93360915]
[1725379032411,0.2498,57687.0,57686.0,1.39360915]
[1725379033016,0.1278,57687.0,57686.0,1.99360915]
[1725379033219,0.1278,57687.0,57686.0,1.9323439]
[1725379033220,0.007,57687.0,57686.0,1.9323439]
[1725379033418,0.127,57687.0,57686.0,1.41947873]
[1725379033624,0.12,57687.0,57686.0,1.3341439]
[1725379034323,0.12,57687.0,57686.0,0.54867215]
[1725379034533,0.13,57687.0,57686.0,0.54867215]
[1725379034818,0.13,57687.0,57686.0,0.07112079]
[1725379034819,0.216696,57687.0,57686.0,0.07112079]
[1725379035153,0.216696,57687.0,57686.0,0.00197515]
[1725379035728,0.316696,57687.0,57686.0,0.00197515]
[1725379036119,0.326696,57687.0,57686.0,0.00197515]
[1725379036621,0.326696,57687.0,57686.0,0.00097515]
[1725379036819,0.322696,57687.0,57686.0,0.00197515]
[1725379037919,0.3479638,57687.0,57686.0,0.00197515]
[1725379038238,0.2612678,57687.0,57686.0,0.00197515]
[1725379038423,0.23,57687.0,57686.0,0.08767215]
[1725379038620,0.242,57687.0,57686.0,0.00197515]
[1725379039113,0.446696,57687.0,57686.0,0.00097515]
[1725379039321,0.57170518,57687.0,57686.0,0.00197515]
[1725379039819,0.57070518,57687.0,57686.0,0.00197515]
[1725379040214,0.48400918,57687.0,57686.0,0.00197515]
[1725379040413,0.26731318,57687.0,57686.0,0.30197515]
[1725379040623,0.26731318,57687.0,57686.0,0.39030215]
[1725379040822,0.242,57687.0,57686.0,0.45951291]
[1725379041027,0.242,57687.0,57686.0,0.39030215]
[1725379041818,0.244,57687.0,57686.0,0.39030215]
[1725379042525,0.317696,57687.0,57686.0,0.07181805]
[1725379042728,0.317696,57687.0,57686.0,0.00260515]
[1725379043025,0.320696,57687.0,57686.0,0.00260515]
[1725379043422,0.320696,57687.0,57686.0,0.45851505]
[1725379043623,0.320696,57687.0,57686.0,0.45851581]
[1725379043624,0.316696,57687.0,57686.0,0.45851581]
[1725379043931,0.235,57687.0,57686.0,0.38930215]
[1725379044319,0.321696,57687.0,57686.0,0.38930215]
[1725379044520,0.321696,57687.0,57686.0,0.45851635]
[1725379045125,0.321696,57687.0,57686.0,0.00260515]
[1725379045340,0.412392,57687.0,57686.0,0.00360515]
[1725379046026,0.732392,57687.0,57686.0,0.00360515]
[1725379046226,0.432392,57687.0,57686.0,0.00360515]
[1725379046528,0.4594511,57687.0,57686.0,0.00360515]
[1725379048128,0.3527551,57687.0,57686.0,0.00360515]
[1725379048725,0.3537551,57687.0,57686.0,0.00360515]
[1725379048919,0.3537551,57687.0,57686.0,0.36440515]
[1725379050745,0.4637551,57687.0,57686.0,0.36440515]
[1725379055631,0.352,57687.0,57686.0,0.45110215]
[1725379056030,0.352,57687.0,57686.0,0.52031635]
[1725379056435,0.438696,57687.0,57686.0,0.43361935]
[1725379058137,0.438696,57687.0,57686.0,0.67361935]
[1725379058932,0.328696,57687.0,57686.0,0.67361935]
[1725379059437,0.328696,57687.0,57686.0,0.43361935]
[1725379059438,0.525392,57687.0,57686.0,0.43361935]
[1725379059742,0.525392,57687.0,57686.0,0.07281935]
[1725379061238,0.525392,57687.0,57686.0,0.07118935]
[1725379061641,0.525392,57687.0,57686.0,0.00197515]
[1725379063235,0.972888,57687.0,57686.0,0.00197515]
[1725379066840,0.886192,57687.0,57686.0,0.00197515]
[1725379067733,0.776192,57687.0,57686.0,0.00197515]
[1725379067939,0.689496,57687.0,57686.0,0.00197515]
[1725379068842,0.242,57687.0,57686.0,0.08867215]
[1725379069349,0.242,57687.0,57686.0,0.57477215]
[1725379070140,0.242,57687.0,57686.0,0.64404268]
[1725379070340,0.122,57687.0,57686.0,0.57477215]
[1725379070643,0.252,57687.0,57686.0,0.57477215]
[1725379071037,0.252,57687.0,57686.0,0.64401232]
[1725379071237,0.252,57687.0,57686.0,0.48807515]
[1725379071545,0.495392,57687.0,57686.0,0.00197515]
[1725379071941,0.408696,57687.0,57686.0,0.00197515]
[1725379072140,0.495392,57687.0,57686.0,0.00197515]
[1725379072839,0.52075151,57687.0,57686.0,0.00197515]
[1725379074247,0.76075151,57687.0,57686.0,0.00197515]
[1725379074470,1.12155151,57687.0,57686.0,0.00197515]
[1725379075140,1.12155151,57687.0,57686.0,0.00360515]
[1725379076541,0.88155151,57687.0,57686.0,0.00360515]
[1725379077246,0.34735951,57687.0,57686.0,0.00360515]
[1725379077446,0.252,57687.0,57686.0,0.94890215]
[1725379077746,0.252,57687.0,57686.0,1.50674232]
[1725379078849,0.252,57687.0,57686.0,1.43750215]
[1725379079146,0.252,57687.0,57686.0,1.50674232]
[1725379079848,0.24,57687.0,57686.0,1.50574232]
[1725379080050,0.24,57687.0,57686.0,1.50674232]
[1725379080051,0.251,57687.0,57686.0,1.50674232]
[1725379080448,0.251,57687.0,57686.0,1.50574232]
[1725379080651,0.249,57687.0,57686.0,1.50674232]
[1725379082057,0.249,57687.0,57686.0,1.43750215]
[1725379082642,0.542392,57687.0,57686.0,0.00360515]
[1725379083847,0.455696,57687.0,57686.0,0.00360515]
[1725379086450,0.455696,57687.0,57686.0,0.45760515]
[1725379087456,0.455696,57687.0,57686.0,0.00360515]
[1725379087653,0.782392,57687.0,57686.0,0.00360515]
[1725379088251,1.272692,57687.0,57686.0,0.00360515]
[1725379088462,1.032692,57687.0,57686.0,0.00360515]
[1725379089160,1.272692,57687.0,57686.0,0.00360515]
[1725379089558,1.032692,57687.0,57686.0,0.00360515]
[1725379090155,1.272692,57687.0,57686.0,0.00360515]
[1725379090565,0.009,57687.0,57686.0,1.81114215]
[1725379090756,0.109,57687.0,57686.0,0.69110215]
[1725379091163,0.109,57687.0,57686.0,0.7163063]
[1725379091767,0.109,57687.0,57686.0,1.8363463]
[1725379092664,0.59232679,57687.0,57686.0,0.00360515]
[1725379093160,1.06562679,57687.0,57686.0,0.00360515]
[1725379094563,1.09090377,57687.0,57686.0,0.00360515]
[1725379094869,0.086708,57680.0,57677.0,0.004]
[1725379095169,0.086708,57680.0,57675.0,0.0018]
[1725379095170,0.24,57678.0,57675.0,0.0018]
[1725379095379,0.6,57678.0,57675.0,0.0018]
[1725379095563,0.6,57678.0,57671.0,0.30924178]
[1725379095761,0.9608,57678.0,57671.0,0.30924178]
[1725379095960,0.9608,57678.0,57671.0,0.24]
[1725379096566,1.047509,57678.0,57671.0,0.24]
[1725379098072,1.047509,57678.0,57672.0,0.086718]
[1725379098073,0.336709,57678.0,57672.0,0.086718]
[1725379098260,0.25,57678.0,57674.0,0.24]
[1725379098859,0.13,57678.0,57674.0,0.24]
[1725379099061,0.13,57678.0,57677.0,0.326711]
[1725379099362,0.13,57678.0,57677.0,0.687511]
[1725379099561,0.00025991,57680.0,57679.0,0.086708]
[1725379099765,0.00025991,57680.0,57679.0,0.15594978]
[1725379099967,0.00025991,57680.0,57679.0,0.086708]
[1725379102364,0.00825991,57680.0,57679.0,0.17429616]
[1725379102573,0.00905991,57680.0,57679.0,0.17429616]
[1725379102867,0.00905991,57680.0,57679.0,0.087708]
[1725379103059,0.00405991,57680.0,57679.0,0.086708]
[1725379103769,0.00405991,57680.0,57679.0,0.15590503]
[1725379103770,0.11405991,57680.0,57679.0,0.15590503]
[1725379103960,0.11405991,57680.0,57679.0,0.086708]
[1725379104962,0.00405991,57680.0,57679.0,0.15590503]
[1725379105164,0.00405991,57680.0,57679.0,0.086708]
[1725379105368,0.00205991,57680.0,57679.0,0.086708]
[1725379105970,0.00105991,57680.0,57679.0,0.086708]
[1725379106270,0.00905991,57680.0,57679.0,0.3931118]
[1725379106473,0.7038,57701.0,57679.0,0.3931118]
[1725379106474,0.086682,57697.0,57690.0,0.086691]
[1725379106773,0.3229,57703.0,57690.0,0.79078726]
[1725379106774,0.4977,57703.0,57690.0,0.79078726]
[1725379106984,0.08668,57699.0,57698.0,0.086678]
[1725379108156,0.52280293,57703.0,57697.0,0.3608]
[1725379108157,0.02510293,57703.0,57697.0,0.3608]
[1725379108364,0.12,57703.0,57702.0,0.326673]
[1725379109076,0.129,57703.0,57702.0,0.326673]
[1725379109268,0.5029,57709.0,57702.0,0.326673]
[1725379109269,0.086664,57708.0,57702.0,0.326673]
[1725379109476,0.3,57708.0,57707.0,0.6008]
[1725379110366,0.11,57708.0,57707.0,0.687466]
[1725379110566,0.00025991,57713.0,57707.0,0.687466]
[1725379110768,0.3229,57727.0,57718.0,0.086649]
[1725379110974,0.33880395,57727.0,57726.0,0.24]
[1725379111176,0.3552155,57727.0,57726.0,0.24]
[1725379111370,1.4748955,57727.0,57726.0,0.24]
[1725379112077,1.5615315,57727.0,57723.0,0.3608]
[1725379112266,0.0008,57724.0,57723.0,0.3608]
[1725379112462,0.3408,57724.0,57723.0,0.3608]
[1725379112672,0.86052,57724.0,57723.0,0.3608]
[1725379113372,0.86052,57724.0,57723.0,0.3618]
[1725379113978,0.3408,57724.0,57723.0,0.3618]
[1725379114275,0.1108,57724.0,57723.0,0.448442]
[1725379114478,0.1108,57724.0,57723.0,0.924342]
[1725379114780,0.0008,57724.0,57723.0,1.010984]
[1725379114985,0.4602,57733.0,57731.0,0.08663]
[1725379115275,0.4602,57733.0,57731.0,0.74743]
[1725379115481,0.10025991,57732.0,57731.0,0.74743]
[1725379116374,0.12549475,57732.0,57731.0,0.74743]
[1725379116881,0.12549475,57732.0,57731.0,0.74843]
[1725379120689,0.25549475,57732.0,57731.0,0.74843]
[1725379121887,0.25549475,57732.0,57731.0,0.83506]
[1725379125785,0.00088,57746.0,57737.0,0.086621]
[1725379125979,0.25,57746.0,57745.0,0.747409]
[1725379126174,0.25,57746.0,57745.0,0.834018]
[1725379126789,0.2753315,57746.0,57745.0,0.834018]
[1725379127083,0.1453315,57746.0,57745.0,0.834018]
[1725379127278,0.1453315,57746.0,57745.0,0.920627]
[1725379127279,5e-07,57746.0,57745.0,0.920627]
[1725379127475,0.001,57746.0,57745.0,0.921627]
[1725379127676,0.00025991,57751.0,57750.0,0.173202]
[1725379127880,0.54517,57771.0,57766.0,0.086577]
[1725379128076,0.4833,57768.0,57763.0,0.3608]
[1725379128275,0.8033,57768.0,57767.0,0.3]
[1725379128487,0.8033,57768.0,57763.0,0.6608]
[1725379128783,0.0004,57764.0,57763.0,0.6608]
[1725379128982,0.2304,57764.0,57763.0,0.6608]
[1725379129184,0.3504,57764.0,57763.0,0.6608]
[1725379129983,1.46976,57764.0,57763.0,0.3618]
[1725379130188,0.3504,57764.0,57763.0,0.3618]
[1725379131285,0.86976,57764.0,57763.0,0.6618]
[1725379131687,1.46976,57764.0,57763.0,0.6618]
[1725379131891,0.86976,57764.0,57763.0,0.6618]
[1725379132281,1.46976,57764.0,57763.0,0.6618]
[1725379132590,0.86976,57764.0,57763.0,0.6618]
[1725379132980,0.3504,57764.0,57763.0,0.6618]
[1725379133289,0.43698,57764.0,57763.0,0.6618]
[1725379133490,0.46227638,57764.0,57763.0,0.6618]
[1725379134090,0.37569638,57764.0,57763.0,0.6618]
[1725379134395,0.37569638,57764.0,57763.0,0.6018]
[1725379134895,1.58163638,57764.0,57763.0,0.6018]
[1725379135105,0.46227638,57764.0,57763.0,0.6018]
[1725379135580,1.58163638,57764.0,57763.0,0.6018]
[1725379135777,0.46227638,57764.0,57763.0,0.6018]
[1725379136195,1.58163638,57764.0,57763.0,0.6018]
[1725379136395,0.086597,57753.0,57752.0,0.00196]
[1725379136593,0.086606,57747.0,57739.0,0.24]
[1725379136890,0.24,57742.0,57735.0,0.47]
[1725379137097,0.086616,57741.0,57735.0,0.24]
[1725379137390,0.33,57741.0,57738.0,0.24]
[1725379137690,0.33,57741.0,57740.0,0.24]
[1725379138086,0.33,57741.0,57735.0,0.4587]
[1725379138087,0.33,57741.0,57737.0,0.24]
[1725379138394,0.0004,57738.0,57737.0,0.24]
[1725379138585,0.0004,57738.0,57734.0,0.447425]
[1725379138586,0.22,57738.0,57734.0,0.6008]
[1725379139093,0.086621,57737.0,57734.0,0.6008]
[1725379139289,0.326621,57737.0,57734.0,0.6008]
[1725379139995,0.326621,57737.0,57734.0,0.6018]
[1725379140587,0.242,57737.0,57734.0,0.6018]
[1725379140788,0.242,57737.0,57735.0,0.086624]
[1725379141587,0.242,57737.0,57736.0,0.086622]
[1725379142395,0.242,57737.0,57736.0,0.05140413]
[1725379142591,0.242,57737.0,57735.0,0.05140413]
[1725379142790,0.242,57737.0,57734.0,0.65320413]
[1725379142991,0.241,57737.0,57735.0,0.05140413]
[1725379143188,0.241,57737.0,57736.0,0.086622]
[1725379143594,0.241,57737.0,57736.0,0.087622]
[1725379143990,0.241,57737.0,57736.0,0.15680926]
[1725379144197,0.24,57737.0,57736.0,0.086622]
[1725379144391,0.2414,57737.0,57736.0,0.086622]
[1725379144703,0.2414,57737.0,57735.0,0.001]
[1725379144994,0.0004,57736.0,57735.0,0.001]
[1725379145203,0.2304,57736.0,57735.0,0.001]
[1725379146396,0.2294,57736.0,57734.0,0.6008]
[1725379147221,0.3394,57736.0,57734.0,0.6008]
[1725379147596,0.3394,57736.0,57735.0,0.05173345]
[1725379148096,1.435622,57736.0,57732.0,0.05199311]
[1725379148301,0.3608,57733.0,57732.0,0.00025966]
[1725379148507,0.667427,57733.0,57732.0,0.00025966]
[1725379148803,0.747427,57733.0,57732.0,0.00025966]
[1725379149405,1.866067,57733.0,57732.0,0.00025966]
[1725379149997,1.866067,57733.0,57732.0,0.00125966]
[1725379149998,1.868067,57733.0,57732.0,0.00125966]
[1725379151400,1.97918797,57733.0,57732.0,1e-08]
[1725379151794,1.97918797,57733.0,57724.0,0.3608]
[1725379151795,0.086639,57725.0,57724.0,0.3608]
[1725379152010,0.667039,57725.0,57724.0,0.3608]
[1725379152301,1.786759,57725.0,57724.0,0.3608]
[1725379153592,1.786759,57725.0,57719.0,0.00025966]
[1725379153593,1.786759,57725.0,57719.0,0.36105966]
[1725379153801,0.0004,57720.0,57719.0,0.36105966]
[1725379154002,0.3704,57720.0,57719.0,0.36105966]
[1725379155505,0.2504,57720.0,57719.0,0.36105966]
[1725379155699,0.2504,57720.0,57719.0,0.44770766]
[1725379156204,0.2644,57720.0,57719.0,0.44870766]
[1725379156907,0.2634,57720.0,57719.0,0.44870766]
[1725379157303,0.2504,57720.0,57719.0,0.44770766]
[1725379157510,0.2644,57720.0,57719.0,0.53535566]
[1725379157806,0.0252591,57725.0,57719.0,0.53535566]
[1725379157807,0.0252591,57725.0,57724.0,0.08664]
[1725379158015,0.11,57725.0,57724.0,0.77408]
[1725379158900,0.0254863,57730.0,57729.0,0.086633]
[1725379159097,0.0354863,57730.0,57729.0,0.687433]
[1725379159298,0.1554863,57730.0,57729.0,0.687433]
[1725379160308,0.01025966,57730.0,57729.0,1.293746]
[1725379160500,0.01025966,57730.0,57729.0,1.34547945]
[1725379160893,0.01325966,57730.0,57729.0,1.34647945]
[1725379161306,0.01325966,57730.0,57729.0,1.94647945]
[1725379161515,0.01325966,57730.0,57729.0,1.893746]
[1725379161697,0.01325966,57730.0,57729.0,1.94539581]
[1725379162106,0.02561842,57732.0,57731.0,0.08663]
[1725379162406,0.4706,57748.0,57740.0,0.086615]
[1725379162606,0.4706,57748.0,57742.0,0.24]
[1725379162607,0.8466,57748.0,57742.0,0.24]
[1725379163201,0.004,57763.0,57747.0,0.6008]
[1725379163401,0.00850762,57785.0,57762.0,0.24]
[1725379163711,0.00850762,57785.0,57783.0,0.24]
[1725379163712,0.14,57785.0,57783.0,0.24]
[1725379163910,0.02,57785.0,57783.0,0.24]
[1725379164114,0.05,57785.0,57783.0,0.24]
[1725379164299,0.01,57785.0,57784.0,0.08655]
[1725379164618,0.0255206,57790.0,57789.0,0.086543]
[1725379164798,0.0255206,57790.0,57789.0,0.24]
[1725379164799,0.00025966,57790.0,57789.0,0.24]
[1725379164998,0.07025966,57790.0,57789.0,0.24]
[1725379166307,0.07025966,57790.0,57789.0,0.3]
[1725379167130,0.09568829,57790.0,57789.0,0.3]
[1725379167703,0.09568829,57790.0,57788.0,0.447343]
[1725379167704,0.09568829,57790.0,57788.0,0.3608]
[1725379168015,0.0004,57789.0,57788.0,0.3608]
[1725379168214,0.1204,57789.0,57788.0,0.3608]
[1725379169106,0.1704,57789.0,57788.0,0.3608]
[1725379170408,0.1214,57789.0,57788.0,0.3618]
[1725379171402,0.1204,57789.0,57788.0,0.3618]
[1725379173417,0.1204,57789.0,57788.0,0.809144]
[1725379173614,0.1214,57789.0,57788.0,0.895688]
[1725379173813,0.00025966,57790.0,57789.0,0.173086]
[1725379174015,0.3608,57811.0,57789.0,0.173086]
[1725379174016,0.03,57796.0,57795.0,0.086534]
[1725379174315,0.39483292,57811.0,57806.0,0.086517]
[1725379174516,0.51896,57810.0,57805.0,0.3608]
[1725379174722,0.36,57810.0,57805.0,0.3608]
[1725379175417,0.87896,57810.0,57805.0,0.3608]
[1725379175619,0.51896,57809.0,57805.0,0.3608]
[1725379175913,0.85896,57809.0,57805.0,0.3608]
[1725379176119,0.51896,57808.0,57805.0,0.3608]
[1725379176319,0.86896,57808.0,57805.0,0.3608]
[1725379177210,0.86896,57808.0,57806.0,0.001]
[1725379177610,0.51896,57807.0,57805.0,0.3608]
[1725379177811,0.0004,57806.0,57805.0,0.3618]
[1725379178028,0.84936,57806.0,57805.0,0.001]
[1725379178323,1.44936,57806.0,57805.0,0.001]
[1725379178619,1.81016,57806.0,57805.0,0.001]
[1725379178819,1.81016,57806.0,57802.0,0.00025966]
[1725379179119,1.81016,57806.0,57784.0,1.3111]
[1725379179120,0.3004,57803.0,57789.0,0.3648]
[1725379179325,0.0004,57790.0,57784.0,0.9521]
[1725379179511,0.0004,57789.0,57784.0,0.9521]
[1725379179709,0.36,57789.0,57784.0,0.0018]
[1725379179910,1.47912,57789.0,57783.0,0.00025966]